[Event "Italian-ch Semifinal 2022"]
[Site "Acqui Terme"]
[Date "2022.06.15"]
[Round "2.1"]
[White "Lettieri, Giuseppe"]
[Black "Pasini, Nicolo"]
[Result "1/2-1/2"]
[ECO "D79"]
[WhiteElo "2445"]
[BlackElo "2227"]
[Annotator "TA"]
[PlyCount "167"]
[EventDate "2022.06.15"]
[EventType "swiss"]
[EventCountry "ITA"]
[SourceTitle "playchess.com"]
[Source "ChessBase"]
[SourceQuality "1"]
[TimeControl "40/5400+30:1800+30"]

{[%evp 15,167,8,10,0,19,13,33,50,55,47,68,12,7,20,28,9,5,0,14,0,3,0,0,0,0,0,0,-17,0,0,0,-9,0,-20,-18,-101,-92,-150,-141,-134,-133,-144,-144,-125,-115,-125,-106,-151,-122,-114,-88,-99,-96,-140,-133,-139,-71,-79,-29,-88,-86,-88,0,-75,-67,-66,-72,-71,-19,-19,-24,-71,-83,-82,-72,-57,-78,-77,-45,-33,-55,-57,-54,-45,-48,-96,-81,-82,-71,-66,-70,-59,-30,-29,-31,-35,-16,-16,-16,-10,-17,-29,-25,-61,-32,-57,-52,-163,-145,-163,-150,-139,-88,-98,-102,-158,-157,-157,-150,-450,-432,-977,-972,-1022,-930,-890,-575,-896,-793,-4678,-4789,-5057,-2155,-1150,-580,-580,0,0,0,0,0,0,0,0,0,0,0,0,0,0,0,0,0,0]} 1. Nf3 {[%emt 0:00:02]} Nf6 {[%emt 0:00:47]} 2. g3 {[%emt 0:00:30]} g6 {[%emt 0:00:58]} 3. Bg2 {[%emt 0:00:07]} Bg7 {[%emt 0:00:08]} 4. O-O {[%emt 0:00:18]} O-O {[%emt 0:00:04]} 5. d4 {[%emt 0:01:14]} d5 {[%emt 0:00:01]} 6. c4 {[%emt 0:00:16]} c6 {[%emt 0:00:01]} 7. cxd5 {[%emt 0:00:22]} cxd5 {[%emt 0:00:13]} 8. Nc3 {[%emt 0:00:10]} Ne4 {[%emt 0:00:01] is now debated instead of 8...Nc6.} 9. Ng5 {[%emt 0:13:31] D79: Fianchetto Grünfeld: Symmetrical Variation (6 0-0 c6 7 cxd5 cxd5).} Nxg5 {[%emt 0:10:23]} 10. Bxg5 {[%emt 0:00:09] [#]} Nc6 $146 {[%emt 0:07:01]} (10... h6 $5 {[%cal Rh6g5]} 11. Bf4 e6 $11) ({Predecessor:} 10... h6 11. Bf4 Nc6 12. Nxd5 Nxd4 13. Bxh6 Bxh6 14. Qxd4 Bg7 15. Qb4 Re8 16. Rac1 a5 {1-0 (59) Adly,A (2596)-Kantor,G (2575) Warsaw 2021}) 11. Nxd5 {[%emt 0:36:26] White is slightly better.} h6 {[%emt 0:03:26]} 12. Bd2 {[%emt 0:04:59]} e6 {[%emt 0:03:59]} 13. Nb4 {[%emt 0:03:20] White is more active.} ({Better is} 13. Ne3 $14) 13... Nxd4 $11 {[%emt 0:05:18]} 14. e3 {[%emt 0:02:38]} Nf5 {[%emt 0:07:06]} 15. Qc2 {[%emt 0:01:01]} Qb6 {[%emt 0:02:45]} 16. a4 {[%emt 0:08:20]} a5 {[%emt 0:00:58]} 17. Nd3 {[%emt 0:00:01]} Bd7 $1 {[%emt 0:00:37]} 18. Qc5 {[%emt 0:00:38]} Qa6 {[%emt 0:01:16]} 19. Qa3 {[%emt 0:04:33]} Bc6 {[%emt 0:06:45]} 20. Bxc6 {[%emt 0:01:23]} Qxc6 {[%emt 0:00:40]} 21. Rac1 {[%emt 0:04:02]} Qf3 {[%emt 0:11:05]} 22. Bc3 {[%emt 0:00:33]} Rfd8 {[%emt 0:01:04]} 23. Ne1 {[%emt 0:04:57]} Qc6 {[%emt 0:06:01]} 24. Ng2 {[%emt 0:01:31] Threatens to win with Bxg7.} Rac8 $40 {[%emt 0:05:02][%mdl 128] Black attacks.} 25. g4 {[%emt 0:03:19] [#]} (25. Qa1 $11 {remains equal.} Bxc3 26. Rxc3) 25... Nd6 $1 $17 {[%emt 0:03:02]} 26. Bxa5 {[%emt 0:06:02]} ({White should try} 26. f3) 26... Qxc1 {[%emt 0:00:17]} 27. Bxd8 {[%emt 0:00:03]} Qc6 {[%emt 0:00:29]} 28. Be7 {[%emt 0:01:06]} Nc4 {[%emt 0:00:11][%csl LRa3,LRb2]} 29. Qb4 {[%emt 0:00:17]} Nxb2 {[%emt 0:01:57]} 30. a5 {[%emt 0:01:03]} Nd3 {[%emt 0:00:57]} 31. Qb6 {[%emt 0:00:37]} Qxb6 {[%emt 0:06:21]} 32. axb6 {[%emt 0:00:01]} Rc6 {[%emt 0:00:21]} 33. Bd8 {[%emt 0:01:27]} Ne5 {[%emt 0:01:11]} 34. h3 {[%emt 0:00:07]} Nf3+ {[%emt 0:03:27]} 35. Kh1 {[%emt 0:00:03]} Nd2 {[%emt 0:02:56]} (35... Rc2 $142 36. Be7 g5) 36. Rd1 {[%emt 0:00:08]} Nc4 {[%emt 0:01:12]} (36... Ne4 $17 37. Kg1 Bf6) 37. Rc1 {[%emt 0:01:02]} (37. Rd7 $11) 37... Rc8 {[%emt 0:00:50]} 38. Rd1 {[%emt 0:00:21]} Rc6 {[%emt 0:00:43]} 39. Rc1 $1 {[%emt 0:00:05]} Bb2 {[%emt 0:02:31]} 40. Rc2 {[%emt 0:00:00]} Be5 {[%emt 0:00:00]} 41. Ne1 {[%emt 0:04:37]} Kf8 {[%emt 0:03:28]} (41... Bd6 $17) 42. Nf3 $11 {[%emt 0:12:24]} Ke8 {[%emt 0:03:13]} 43. Bh4 {[%emt 0:11:15]} ({Not} 43. Rxc4 $2 Rxc4 44. Nxe5 Rc1+ 45. Kg2 Kxd8 46. Nxf7+ Ke7 47. Nxh6 Rb1 $19) (43. Nxe5 $11 Nxe5 44. Rxc6 Nxc6 45. Bf6) 43... Bg7 {[%emt 0:00:26]} 44. Ra2 {[%emt 0:01:06]} Nxb6 {[%emt 0:02:00]} 45. Ra7 {[%emt 0:00:01]} Rc7 {[%emt 0:00:18]} 46. Bg3 {[%emt 0:00:20]} Nc8 {[%emt 0:00:28] And now ...Rc1+ would win.} 47. Ra8 {[%emt 0:01:00]} Rc1+ {[%emt 0:02:13]} 48. Kg2 {[%emt 0:00:01]} Kd7 $1 {[%emt 0:02:00]} 49. Rb8 {[%emt 0:00:54]} Rb1 {[%emt 0:00:14]} 50. Nd2 {[%emt 0:00:23]} (50. Be5 $15 Bxe5 51. Nxe5+ Kc7 52. Ra8) 50... Rb4 $17 {[%emt 0:00:25]} 51. Kf3 {[%emt 0:00:31]} Bf8 {[%emt 0:05:01]} 52. Ne4 {[%emt 0:01:17]} Be7 {[%emt 0:00:11] Prevents Nf6+.} 53. Be5 {[%emt 0:02:38]} f5 {[%emt 0:03:48]} 54. Nf6+ {[%emt 0:00:16]} Bxf6 {[%emt 0:00:12]} 55. Bxf6 {[%emt 0:00:01]} fxg4+ {[%emt 0:02:23]} 56. hxg4 $11 {[%emt 0:00:01][%mdl 4096] Endgame KRB-KRN} h5 {[%emt 0:00:21]} 57. gxh5 {[%emt 0:00:49]} gxh5 {[%emt 0:00:10]} 58. Kg2 {[%emt 0:01:45]} Rb5 {[%emt 0:04:26]} 59. f4 {[%emt 0:01:03]} Nd6 {[%emt 0:02:58]} (59... Rb3 $5 {[%cal Rc8d6]}) 60. Kf3 {[%emt 0:01:28]} Rb3 {[%emt 0:03:35]} 61. Bd4 {[%emt 0:00:32]} (61. Rh8 $15) 61... Nf5 $19 {[%emt 0:00:47]} 62. Ke4 {[%emt 0:00:50]} h4 {[%emt 0:02:17]} 63. Rh8 {[%emt 0:00:15]} Nd6+ {[%emt 0:05:15]} ({Black should play} 63... Ke7 64. Rh7+ Kd6 65. Be5+ Kc6) 64. Kf3 $17 {[%emt 0:00:11] [#]} Kc6 $1 {[%emt 0:00:24]} 65. Ba7 {[%emt 0:01:06]} (65. Bf6 $142) 65... Ra3 {[%emt 0:00:35]} 66. Bd4 {[%emt 0:00:21]} b5 {[%emt 0:00:55]} 67. Ke2 $2 {[%emt 0:01:32]} (67. Kg4 $17) 67... Nf5 $19 {[%emt 0:00:09]} 68. Rc8+ {[%emt 0:00:14]} (68. Bc3 $142 Kd5 69. Kd3 Nxe3 70. Rd8+ Kc6 71. Kxe3 Rxc3+ 72. Kd4) 68... Kd7 {[%emt 0:01:48]} 69. Rb8 {[%emt 0:00:14]} Nxd4+ {[%emt 0:00:06]} 70. exd4 {[%emt 0:00:00] KR-KR} Kc6 {[%emt 0:01:46]} 71. Rc8+ {[%emt 0:01:07]} Kd6 {[%emt 0:00:56] Hoping for ...b4.} 72. Rc5 {[%emt 0:00:26]} h3 {[%emt 0:00:07] aiming for ...Ra1.} 73. Kf2 {[%emt 0:00:19]} b4 {[%emt 0:00:59]} 74. Rb5 {[%emt 0:01:08]} b3 {[%emt 0:00:01] ( -> ...Ra2+)} 75. Kg3 {[%emt 0:00:23]} Ra2 $2 {[%emt 0:00:47]} (75... b2+ 76. Kh2 $11) (75... Kc6 $19 76. Rb4 Kd5 77. Kxh3 Ke4) 76. Kxh3 $11 {[%emt 0:00:34] The position is equal.} b2 {[%emt 0:00:16]} 77. Kg3 {[%emt 0:00:28]} Kc6 {[%emt 0:00:07]} 78. Rb4 $1 {[%emt 0:00:14]} Kd5 {[%emt 0:00:13] White must now prevent ...Ke4.} 79. Kf3 {[%emt 0:00:21]} Ra3+ {[%emt 0:00:47]} 80. Kg4 {[%emt 0:00:52]} Ra2 {[%emt 0:00:20]} 81. Kf3 {[%emt 0:00:12]} Kd6 {[%emt 0:00:09]} 82. Ke4 {[%emt 0:00:19]} Kc6 {[%emt 0:01:09]} 83. Kd3 {[%emt 0:00:50]} Ra3+ {[%emt 0:01:10]} 84. Ke4 {[%emt 0:00:25] And White is the lucky defender.  Weighted Error Value: White=0.14 (very precise) /Black=0.11 (very precise)} 1/2-1/2

[Event "Italian-ch Semifinal 2022"]
[Site "Acqui Terme"]
[Date "2022.06.15"]
[Round "2.2"]
[White "Cocchi, Andrea"]
[Black "Barp, Alberto"]
[Result "0-1"]
[ECO "A08"]
[WhiteElo "2205"]
[BlackElo "2384"]
[Annotator "TA"]
[PlyCount "74"]
[EventDate "2022.06.15"]
[EventType "swiss"]
[EventCountry "ITA"]
[SourceTitle "playchess.com"]
[Source "ChessBase"]
[SourceQuality "1"]
[TimeControl "40/5400+30:1800+30"]

{[%evp 11,74,0,0,0,-2,-29,-12,-18,-33,-36,-12,-27,-16,-20,-13,-16,-27,-17,-8,0,0,-6,18,0,0,-5,0,0,0,0,2,0,-6,0,0,-27,0,0,110,24,100,81,100,0,0,-166,0,-273,-297,-228,-233,-314,-270,-478,-364,-357,-338,-851,-829,-1601,-275,-29990,-29991,-29997,-29998]} 1. Nf3 {[%emt 0:00:21]} Nf6 {[%emt 0:01:25]} 2. g3 {[%emt 0:02:51]} d5 {[%emt 0:00:32]} 3. Bg2 {[%emt 0:00:14]} c5 {[%emt 0:04:32]} 4. d3 {[%emt 0:19:28]} Nc6 {[%emt 0:00:29]} 5. Nbd2 {[%emt 0:00:08]} g6 {[%emt 0:00:57]} 6. O-O {[%emt 0:02:28]} Bg7 {[%emt 0:00:18]} 7. c3 {[%emt 0:02:44] A08: King's Indian Attack.} O-O {[%emt 0:00:12]} 8. Qc2 {[%emt 0:05:49]} e5 {[%emt 0:03:23]} 9. e4 {[%emt 0:02:30] The position is equal.} h6 {[%emt 0:00:13]} 10. a3 {[%emt 0:03:04]} a5 {[%emt 0:08:02]} 11. a4 {[%emt 0:00:29]} Be6 {[%emt 0:00:16]} 12. exd5 {[%emt 0:04:54]} Nxd5 {[%emt 0:01:29]} (12... Qxd5 13. Ng5 $1 Qd6 14. Nxe6 Qxe6 15. Qb3 $16) 13. Re1 {[%emt 0:18:56]} Qc7 {[%emt 0:00:32]} 14. Nc4 {[%emt 0:00:50] [#]} Rfd8 $146 {[%emt 0:11:02]} ({Predecessor:} 14... Rfe8 15. Bd2 Rad8 16. Rad1 Bf5 17. Bc1 Nb6 18. Ne3 Be6 19. Nd2 Nd5 20. Nec4 Bg4 {½-½ (31) Zhang,Z (2617)-Tirto (2413) Tarakan 2008}) 15. Qe2 {[%emt 0:01:36][%cal Rf3e5]} Re8 {[%emt 0:06:52]} 16. Bd2 {[%emt 0:03:51][%cal Rf3e5]} (16. Nfxe5 Nxe5 17. Nxe5 Bxe5 18. Qxe5 Bd7 $17) (16. Ncxe5 Bxe5 17. Nxe5 Nxe5 18. Qxe5 Bd7 19. Qxe8+ Rxe8 $17) 16... f6 {[%emt 0:06:26]} 17. Be3 {[%emt 0:05:12]} (17. Nh4 {with more complications.} Kh7 18. f4 exf4 19. Nxg6 Kxg6 20. Bxd5 Bxd5 21. Qg4+) 17... b6 {[%emt 0:05:32]} 18. Na3 {[%emt 0:02:05]} Rad8 {[%emt 0:03:01]} 19. Nd2 {[%emt 0:04:05]} Bf7 {[%emt 0:10:40][%cal Od5f4]} 20. Ndc4 {[%emt 0:00:29]} Qb8 {[%emt 0:06:30]} 21. Qc2 {[%emt 0:01:04]} f5 {[%emt 0:02:38]} 22. Rad1 {[%emt 0:01:02]} g5 {[%emt 0:07:11][%cal Bg6g5,Bg5g4][%mdl 32]} 23. Qb3 {[%emt 0:04:36]} g4 {[%emt 0:04:09]} 24. Bc1 {[%emt 0:05:00]} Rd7 {[%emt 0:02:38]} (24... f4 $11 {remains equal.}) 25. f3 {[%emt 0:02:31]} (25. Qb5 $1 $16 {[%cal Rb5c6]} Re6 26. d4) 25... h5 {[%emt 0:02:12]} (25... gxf3 $1 $11 {keeps the balance.} 26. Bxf3 Red8) 26. Bg5 {[%emt 0:00:09]} f4 {[%emt 0:03:45]} 27. gxf4 {[%emt 0:02:16]} (27. fxg4 $16 hxg4 28. Qb5) 27... exf4 $11 {[%emt 0:00:28] ...Ne5 is the strong threat.} 28. fxg4 $2 {[%emt 0:00:41] [#]} (28. Qb5 $1 $11 Rxe1+ 29. Rxe1) 28... hxg4 $2 {[%emt 0:00:14]} ({Black should play} 28... Bd4+ $1 $19 {[%mdl 512]} 29. Kh1 (29. cxd4 $2 Nxd4 30. Qc2 Nxc2 $19) 29... hxg4) 29. Be4 $2 {[%emt 0:01:01][%mdl 8192]} (29. Qb5 $11 {and White is okay.} Rxe1+ 30. Rxe1) 29... Ne5 {[%emt 0:01:23]} 30. Qb5 {[%emt 0:01:10]} Qc7 {[%emt 0:01:09] aiming for ...Nf3+.} 31. Kh1 {[%emt 0:00:27]} g3 {[%emt 0:02:53]} 32. Bf5 $2 {[%emt 0:01:45]} (32. hxg3 Ng4 33. Bf3 Nf2+ 34. Kg2 Rxe1 35. Rxe1 Nxd3 36. Rd1) 32... Be6 {[%emt 0:01:29]} 33. Nxe5 {[%emt 0:00:36]} Bxe5 {[%emt 0:01:29] The board is on fire.} (33... Bxf5 34. Nxd7 Rxe1+ 35. Rxe1 $11) 34. Bxe6+ $2 {[%emt 0:00:46]} (34. Be4 Bxc3 35. Re2 (35. bxc3 $2 Nxc3 36. Qc6 Nxd1 $19)) 34... Rxe6 $19 {[%emt 0:00:02]} 35. Nc4 {[%emt 0:00:30]} f3 $2 {[%emt 0:01:45]} (35... Nxc3 {( -> ...Qb7+)} 36. bxc3 Qb7+ 37. Re4 Qxe4+ 38. dxe4 Rxd1+ 39. Kg2 f3+ 40. Kh3 gxh2 41. Nxe5 h1=Q+ 42. Kg4 Rg1+ 43. Kf5 Qh3+ 44. Kf4 f2 45. Bh4 f1=Q+ 46. Qxf1 Rxf1+ 47. Bf2 Rxf2+ 48. Nf3 Rxf3+ 49. Kg5 Rxe4 50. Kg6 Rg4#) 36. hxg3 $2 {[%emt 0:00:36]} ({Don't go for} 36. Rxe5 $2 {[#]} Rh7 $1 37. h4 Rxe5 38. Nxe5 Qxe5 $19) (36. Nxe5 $19 g2+ 37. Kg1 f2+ 38. Kxf2 Rxe5 39. Rxe5 (39. h4 $2 Rxg5 40. Kg1 Rg4 $19) 39... Rf7+ 40. Kxg2 Qxe5 41. Rg1 Qe2+ 42. Kh1) 36... Rh7+ {[%emt 0:01:07]} 37. Kg1 {[%emt 0:00:33] [#]} Bd4+ $1 {[%emt 0:00:17][%mdl 576] Back Rank.  Weighted Error Value: White=0.79/Black=0.43} 0-1

[Event "Italian-ch Semifinal 2022"]
[Site "Acqui Terme"]
[Date "2022.06.15"]
[Round "2.3"]
[White "Genocchio, Daniele"]
[Black "Hercegovac, Neven"]
[Result "1/2-1/2"]
[ECO "A37"]
[WhiteElo "2365"]
[BlackElo "2155"]
[Annotator "TA"]
[PlyCount "83"]
[EventDate "2022.06.15"]
[EventType "swiss"]
[EventCountry "ITA"]
[SourceTitle "playchess.com"]
[Source "ChessBase"]
[SourceQuality "1"]
[TimeControl "40/5400+30:1800+30"]

{[%evp 14,83,1,0,7,0,0,0,0,0,0,0,0,-9,12,-33,-16,-18,0,5,0,0,0,0,6,-75,38,25,72,72,234,73,73,72,78,61,70,53,40,36,423,396,388,62,133,129,576,434,426,419,393,0,0,0,3,0,0,-6,0,0,0,-50,-25,-28,-30,-35,-15,-18,-19,-42,-31,-26]} 1. Nf3 {[%emt 0:00:35]} c5 {[%emt 0:00:05]} 2. c4 {[%emt 0:01:33]} g6 {[%emt 0:00:33]} 3. Nc3 {[%emt 0:01:26]} Bg7 {[%emt 0:00:35]} 4. g3 {[%emt 0:01:31]} Nc6 {[%emt 0:00:10]} 5. Bg2 {[%emt 0:00:48]} e6 {[%emt 0:00:20]} 6. d4 {[%emt 0:03:39]} Nxd4 {[%emt 0:00:56]} 7. Nxd4 {[%emt 0:00:40]} cxd4 {[%emt 0:00:19]} 8. Ne4 $1 {[%emt 0:00:59] 8.Ne4 is better than 8.Nb5.} d5 {[%emt 0:00:17] 8...Ne7 is not played anymore. A37: Symmetrical English vs ...g6: 4 Bg2 Bg7 5 Nf3.} 9. cxd5 {[%emt 0:01:37]} exd5 {[%emt 0:00:36]} 10. Qa4+ {[%emt 0:01:41]} Kf8 {[%emt 0:00:19] The position is equal.} 11. Nc5 {[%emt 0:01:29]} Ne7 {[%emt 0:00:48]} 12. O-O {[%emt 0:05:58]} h6 {[%emt 0:00:24] [#]} 13. Nb3 $146 {[%emt 0:25:24]} ({Predecessor:} 13. Nd3 Bf6 14. Bf4 Nc6 15. Qb3 g5 16. Bd2 Ne7 17. Bb4 Kg7 18. Bxe7 Qxe7 19. Bxd5 {½-½ (51) Marin,M (2510)-Korpa,B (2545) Braganca 2021}) 13... Nc6 {[%emt 0:16:36]} 14. Bf4 {[%emt 0:16:23][%mdl 1024] White has compensation.} Bf6 {[%emt 0:13:42]} 15. Rac1 {[%emt 0:06:35][%cal Ba1c1,Bc1c5,Bc5d5][%mdl 32]} g5 {[%emt 0:01:35]} 16. Bd2 {[%emt 0:00:40]} Kg7 {[%emt 0:01:23]} 17. Rc5 {[%emt 0:09:43]} Be6 {[%emt 0:01:47]} 18. f4 {[%emt 0:00:37]} gxf4 {[%emt 0:09:52]} 19. gxf4 {[%emt 0:04:48]} (19. Bxf4 $11 a6 20. Nc1) 19... Qc8 {[%emt 0:07:18]} (19... Rg8 $1 $17 {Threatens to win with ...Kh8.} 20. f5 Be5) 20. f5 $14 {[%emt 0:00:51]} Bxf5 {[%emt 0:02:58]} (20... Bd7 $1 $11) 21. Rxd5 $16 {[%emt 0:05:51]} Bh3 {[%emt 0:06:51]} (21... Bg6 $16 {was called for.}) 22. Bxh3 $2 {[%emt 0:01:11]} (22. Nxd4 $18 {and the rest is easy.} Bxg2 23. Nf5+ Kh7 24. Kxg2) 22... Qxh3 {[%emt 0:00:14]} 23. Rf3 {[%emt 0:00:16] The board is on fire.} Qe6 {[%emt 0:00:20][%csl LRd5,LRe2]} 24. Rdf5 {[%emt 0:01:10] White is more active.} Be5 {[%emt 0:05:44]} 25. Nc5 {[%emt 0:03:22]} Qg6+ {[%emt 0:03:36]} 26. Kh1 {[%emt 0:00:02]} f6 $2 {[%emt 0:00:49][%mdl 8192]} (26... Rhg8 $1 $14 27. Qd1 Kh8) 27. Qb3 $18 {[%emt 0:04:11]} Rhg8 {[%emt 0:02:49] [#] ...Kh8 is the strong threat.} 28. Qd1 $2 {[%emt 0:00:58]} ({Don't blunder} 28. Rg3 $2 Bxg3 29. Qxg3 Qxg3 30. hxg3 Rge8 $19) ({Less strong is} 28. Rh3 Kf8 29. Rg3 (29. Bxh6+ Ke8 $18) 29... Bxg3 $18) ({White has to play} 28. Bxh6+ $1 $18 {[%mdl 512]} Kh8 29. Bg5 $1 {[%mdl 512]}) 28... Kh7 {[%emt 0:13:17]} (28... Kf7 $14 29. Qb3+ Kg7) 29. Qf1 $1 $16 {[%emt 0:00:05]} b6 $2 {[%emt 0:02:25][%mdl 8192]} (29... Ne7 $16 {is a better chance.} 30. Rxf6 Bxf6 31. Rxf6 Raf8 32. Rxf8 Qc6+ 33. Rf3 Qxc5) 30. Nd3 {[%emt 0:00:22]} Qg4 {[%emt 0:02:41] [#]} 31. Bxh6 $1 {[%emt 0:00:51][%mdl 512]} Rg6 {[%emt 0:01:35] [#]} 32. Bd2 {[%emt 0:00:23]} (32. Nf2 $1 $18 {[%cal Rf2g4]} Qg1+ 33. Qxg1 Rxg1+ 34. Kxg1 Rg8+ {[#]} 35. Bg5 $1 {[%mdl 512]} Rxg5+ 36. Rxg5 fxg5 37. Rf7+ Kg6 38. Rd7) 32... Rag8 $1 $11 {[%emt 0:00:38]} 33. Qh3+ {[%emt 0:00:47]} Kg7 $132 {[%emt 0:01:00][%csl Gg6][%cal Rg4g1][%mdl 2048] Black is fighting back} 34. Qxg4 {[%emt 0:00:28]} Rxg4 {[%emt 0:00:02]} 35. h3 {[%emt 0:00:33]} Rg6 {[%emt 0:00:32][%cal Og7f7]} 36. Nf4 {[%emt 0:00:27]} Bxf4 {[%emt 0:00:44]} 37. Bxf4 {[%emt 0:00:13]} ({Better is} 37. R5xf4 $11 Ne5 38. Rf2) 37... Kf7 {[%emt 0:01:05] ( -> ...Rg1+)} 38. Bh2 {[%emt 0:00:36] Against Rg1+} Re8 {[%emt 0:01:41]} 39. Rf2 {[%emt 0:00:25]} Ke6 {[%emt 0:01:58]} 40. R5f4 {[%emt 0:00:00]} Rh8 {[%emt 0:00:00]} 41. R2f3 {[%emt 0:03:39]} Ne5 {[%emt 0:03:59]} 42. Rg3 $1 {[%emt 0:03:56] Black escapes into a draw.  Weighted Error Value: White=0.42/Black=0.49} 1/2-1/2

[Event "Italian-ch Semifinal 2022"]
[Site "Acqui Terme"]
[Date "2022.06.15"]
[Round "2.4"]
[White "Andreoni, Giuseppe"]
[Black "Lumachi, Gabriele"]
[Result "0-1"]
[ECO "C60"]
[WhiteElo "2170"]
[BlackElo "2347"]
[Annotator "TA"]
[PlyCount "60"]
[EventDate "2022.06.15"]
[EventType "swiss"]
[EventCountry "ITA"]
[SourceTitle "playchess.com"]
[Source "ChessBase"]
[SourceQuality "1"]
[TimeControl "40/5400+30:1800+30"]

{[%evp 11,60,19,30,16,29,0,0,0,0,-16,0,0,0,0,20,6,25,-17,40,-20,-27,-29,0,0,0,0,0,0,0,0,0,-33,-37,-47,-33,-34,0,0,86,60,60,-270,-262,-673,-673,-662,-647,-665,-665,-598,-591]} 1. e4 {[%emt 1:31:00]} e5 {[%emt 0:02:41]} 2. Nf3 {[%emt 0:00:00]} Nc6 {[%emt 0:00:06]} 3. Bb5 {[%emt 0:00:00]} Nge7 {[%emt 0:00:08]} 4. O-O {[%emt 0:00:00]} Ng6 {[%emt 0:00:10]} 5. d4 {[%emt 0:00:00]} exd4 {[%emt 0:00:09]} 6. Nxd4 {[%emt 0:00:00]} Bc5 {[%emt 0:00:08]} 7. Nf5 {[%emt 0:00:00] C60: Ruy Lopez: Unusual Black 3rd moves and 3...g6.} O-O {[%emt 0:00:08]} 8. Qh5 {[%emt 0:00:00][%cal Of5g7]} d6 {[%emt 0:00:49]} 9. Bg5 {[%emt 0:00:00] The position is equal.} f6 {[%emt 0:01:55]} 10. Be3 {[%emt 0:00:00]} (10. Bc4+ Kh8 11. Be3 Nge5 $15) 10... Bxe3 {[%emt 0:05:48]} 11. Nxe3 {[%emt 0:00:00] [#]} Nce7 $146 {[%emt 0:10:00]} ({Predecessor:} 11... Be6 12. f4 Bf7 13. Bc4 Nd4 14. Nd2 Qe8 15. c3 Bxc4 16. Nexc4 Nc6 17. Rae1 Qf7 {½-½ (57) Sousa,T (1787)-Bolhari,O (2141) Lisbon 2015}) 12. Nd2 {[%emt 0:00:00]} c6 {[%emt 0:03:08]} 13. Bc4+ {[%emt 0:00:00]} Kh8 $1 {[%emt 0:00:05]} 14. f4 {[%emt 0:00:00]} f5 {[%emt 0:22:57]} (14... Qb6 $11 15. Rae1 Qxb2) 15. Bb3 {[%emt 0:00:00]} ({White should try} 15. g3 $14) 15... a5 $11 {[%emt 0:03:39]} 16. a4 {[%emt 0:00:00]} Qb6 {[%emt 0:05:30]} 17. Rae1 {[%emt 0:00:00]} ({Don't play} 17. Ndc4 Qc5 18. Rae1 b5 19. axb5 a4 $17) 17... fxe4 {[%emt 0:01:02]} 18. Nxe4 {[%emt 0:00:00][%cal Bd2e4,Be4g5,Bg5f3][%mdl 32] [#] And now Kh1 would win.} d5 $1 {[%emt 0:00:40]} 19. Ng5 $36 {[%emt 0:00:00][%csl Gg5][%cal Rh5h7][%mdl 2048] White has the initiative.} h6 {[%emt 0:00:10]} 20. Kh1 {[%emt 0:00:00][%cal Of4f5] Hoping for f5!} Qb4 {[%emt 0:11:01]} 21. g3 {[%emt 0:00:00]} (21. c3 $5 Qxb3 22. f5 Bxf5 23. Nxf5 Nxf5 24. Qxg6 hxg5 25. Rxf5 Rxf5 26. Qxf5 $11) 21... Bd7 {[%emt 0:09:51]} 22. Nf3 {[%emt 0:03:46]} Rae8 {[%emt 0:05:08]} 23. Ng4 {[%emt 0:03:59][%cal Og4h6] aiming for Nxh6!} Rf5 {[%emt 0:11:39]} (23... Bf5 $5 {[%cal Rf5e4]}) 24. Qh3 {[%emt 0:00:01][%cal Og4h6]} Nxf4 {[%emt 0:00:48]} 25. gxf4 $16 {[%emt 0:00:46]} Rxf4 {[%emt 0:00:07] [#]} 26. Qh5 {[%emt 0:03:12][%mdl 8192] This move loses the game for White.} (26. Nfe5 $1 $14 {was forced to keep a grip.} Ref8 27. Nxd7 Rxf1+ 28. Rxf1 Rxf1+ 29. Qxf1 Qe4+ 30. Qg2 Qe1+ 31. Qg1 Qe4+ 32. Qg2 Qe1+ 33. Qg1 Qe4+ 34. Qg2) 26... Rxf3 $1 $19 {[%emt 0:01:48]} ({And not} 26... Rxg4 27. c3 Qxb3 28. Ne5 $17) 27. Nxh6 $2 {[%emt 0:00:39]} (27. Ne5 Rxf1+ 28. Rxf1 Qe4+ 29. Kg1 Qe3+ 30. Kh1) 27... Rxf1+ {[%emt 0:01:19] Black is clearly winning.} 28. Rxf1 {[%emt 0:00:01] White wants to mate with Nf7+.} Qe4+ {[%emt 0:00:16]} ({Don't do} 28... gxh6 29. Qxh6+ Kg8 30. Qg5+ Kh8 31. Qh5+ Kg8 32. Rg1+ Bg4 33. Rxg4+ Qxg4 34. Qxg4+ $18) 29. Rf3 {[%emt 0:00:01] Intending Nf7+ and mate.} gxh6 {[%emt 0:01:10]} 30. Qxh6+ {[%emt 0:00:02]} Kg8 {[%emt 0:00:42] Weighted Error Value: White=0.61/Black=0.13 (very precise)} 0-1